fUSD/lending_fUSD_20240301
["ID","MTS","AMOUNT","RATE_DAILY","PERIOD"]
[315939119,1709293844165,-500.0,0.00022703,2]
[315939120,1709293844173,-500.0,0.00022703,2]
[315939121,1709293844182,-500.0,0.00022703,2]
[315939122,1709293844191,-500.0,0.00022703,2]
[315939123,1709293844201,-1216.78,0.00022703,2]
[315939124,1709293844210,-831.7,0.00022703,2]
[315939125,1709293844221,-500.0,0.00022703,2]
[315939126,1709293844230,-606.46,0.00022703,2]
[315939127,1709293844239,-500.0,0.00022703,2]
[315939128,1709293844249,-685.05,0.00022703,2]
[315939129,1709293844258,-979.6,0.00022703,2]
[315939130,1709293844267,-500.0,0.00022703,2]
[315939131,1709293844276,-1097.46,0.00022703,2]
[315939132,1709293844286,-500.0,0.00022703,2]
[315939133,1709293844296,-875.38,0.00022703,2]
[315939134,1709293844306,-549.32,0.00022703,2]
[315939135,1709293844315,-500.0,0.00022703,2]
[315939136,1709293844324,-653.74,0.00022703,2]
[315939137,1709293844333,-1741.85,0.00022703,2]
[315939138,1709293844342,-500.0,0.00022703,2]
[315939139,1709293844352,-532.65,0.00022703,2]
[315939140,1709293844361,-500.0,0.00022703,2]
[315939141,1709293844370,-557.01,0.00022703,2]
[315939142,1709293844379,-500.0,0.00022703,2]
[315939143,1709293844388,-636.39,0.00022703,2]
[315939144,1709293844397,-500.0,0.00022703,2]
[315939145,1709293844407,-2055.25,0.00022703,2]
[315939146,1709293844416,-1045.04,0.00022703,2]
[315939147,1709293844425,-500.0,0.00022703,2]
[315939148,1709293844435,-1028.03,0.00022703,2]
[315939149,1709293844444,-672.6,0.00022703,2]
[315939150,1709293844454,-528.88,0.00022703,2]
[315939151,1709293844464,-730.33,0.00022703,2]
[315939152,1709293844474,-500.0,0.00022703,2]
[315939153,1709293844483,-500.0,0.00022703,2]
[315939154,1709293844493,-906.99,0.00022703,2]
[315939155,1709293844502,-500.0,0.00022703,2]
[315939156,1709293844512,-2220.31,0.00022703,2]
[315939157,1709293844522,-504.18,0.00022703,2]
[315939158,1709293844532,-500.0,0.00022703,2]
[315939159,1709293844541,-1251.33,0.00022703,2]
[315939160,1709293844551,-610.63,0.00022703,2]
[315939161,1709293844560,-597.75,0.00022703,2]
[315939162,1709293844569,-500.0,0.00022703,2]
[315939163,1709293844578,-500.0,0.00022703,2]
[315939164,1709293844587,-500.0,0.00022703,2]
[315939165,1709293844596,-500.0,0.00022703,2]
[315939166,1709293844605,-500.0,0.00022703,2]
[315939167,1709293844614,-500.0,0.00022703,2]
[315939168,1709293844623,-500.0,0.00022703,2]
[315939169,1709293844633,-500.0,0.00022703,2]
[315939170,1709293844642,-500.0,0.00022703,2]
[315939171,1709293844651,-500.0,0.00022703,2]
[315939172,1709293844660,-500.0,0.00022703,2]
[315939173,1709293844670,-500.0,0.00022703,2]
[315939174,1709293844679,-500.0,0.00022703,2]
[315939175,1709293844689,-500.0,0.00022703,2]
[315939176,1709293844699,-500.0,0.00022703,2]
[315939177,1709293844708,-2188.64,0.00022703,2]
[315939178,1709293844719,-705.07,0.00022703,2]
[315939179,1709293844729,-500.0,0.00022703,2]
[315939180,1709293844738,-500.0,0.00022703,2]
[315939181,1709293844747,-500.0,0.00022703,2]
[315939182,1709293844756,-605.26,0.00022703,2]
[315939183,1709293844766,-500.0,0.00022703,2]
[315939184,1709293844775,-7517.77,0.00022703,2]
[315939185,1709293844784,-1520.43,0.00022703,2]
[315939186,1709293844794,-500.0,0.00022703,2]
[315939187,1709293844803,-500.0,0.00022703,2]
[315939188,1709293844812,-7431.46,0.00022703,2]
[315939189,1709293844821,-476.87,0.00022725,2]
[315939190,1709293844832,-173.89,0.00022725,2]
[315939191,1709293844841,-191.23,0.00022725,2]
[315939192,1709293844851,-1452.96447896,0.00022735,2]
[315939193,1709293844860,-862.70784812,0.00022738,2]
[315939194,1709293844870,-158.24,0.0002274,2]
[315939195,1709293844879,-168.63,0.0002274,2]
[315939196,1709293844888,-168.63,0.0002274,2]
[315939197,1709293844898,-178.39538601,0.00022746,2]
[315939198,1709293844907,-1452.96447896,0.00022768,2]
[315939199,1709293844916,-200.0,0.00022789,2]
[315939200,1709293844925,-83279.72027125,0.00022799,4]
[315939201,1709293844934,-11960.71897072,0.00022799,2]
[315939202,1709293844944,-11960.71897067,0.00022799,2]
[315939203,1709293844953,-11960.71897067,0.00022799,2]
[315939204,1709293844963,-32793.29615998,0.00022799,2]
[315939205,1709293844974,-10167.35305312,0.000228,2]
[315939206,1709293845008,-447.39,0.000228,2]
[315939207,1709293845019,-1452.96447896,0.00022801,2]
[315939208,1709293845028,-500.0,0.00022809,2]
[315939209,1709293845037,-500.0,0.00022809,2]
[315939210,1709293845046,-944.1,0.00022809,2]
[315939211,1709293845056,-500.0,0.00022809,2]
[315939212,1709293845065,-500.0,0.00022809,2]
[315939213,1709293845075,-524.19,0.00022809,2]
[315939214,1709293845084,-500.0,0.00022809,2]
[315939215,1709293845094,-500.0,0.00022809,2]
[315939216,1709293845104,-500.0,0.00022809,2]
[315939217,1709293845114,-500.0,0.00022809,2]
[315939218,1709293845123,-500.0,0.00022809,2]
[315939219,1709293845134,-500.0,0.00022809,2]
[315939220,1709293845143,-500.0,0.00022809,2]
[315939221,1709293845153,-595.94,0.00022809,2]
[315939222,1709293845162,-730.77,0.00022809,2]
[315939223,1709293845171,-584.55,0.00022809,2]
[315939224,1709293845181,-500.0,0.00022809,2]
[315939225,1709293845190,-500.0,0.00022809,2]
[315939226,1709293845199,-500.0,0.00022809,2]
[315939227,1709293845208,-759.4,0.00022809,2]
[315939228,1709293845218,-500.0,0.00022809,2]
[315939229,1709293845227,-500.0,0.00022809,2]
[315939230,1709293845236,-500.0,0.00022809,2]
[315939231,1709293845245,-500.0,0.00022809,2]
[315939232,1709293845254,-506.85,0.00022809,2]
[315939233,1709293845263,-500.0,0.00022809,2]
[315939234,1709293845272,-500.0,0.00022809,2]
[315939235,1709293845281,-500.0,0.00022809,2]
[315939236,1709293845291,-563.09,0.00022809,2]
[315939237,1709293845300,-500.0,0.00022809,2]
[315939238,1709293845309,-500.0,0.00022809,2]
[315939239,1709293845319,-500.0,0.00022809,2]
[315939240,1709293845328,-500.0,0.00022809,2]
[315939241,1709293845337,-500.0,0.00022809,2]
[315939242,1709293845347,-500.0,0.00022809,2]
[315939243,1709293845356,-500.0,0.00022809,2]
[315939244,1709293845365,-500.0,0.00022809,2]
[315939245,1709293845375,-500.0,0.00022809,2]
[315939246,1709293845384,-500.0,0.00022809,2]
[315939247,1709293845393,-250.06032552,0.00022809,30]
[315939248,1709293845402,-500.0,0.00022809,2]
[315939249,1709293845411,-500.0,0.00022809,2]
[315939250,1709293845421,-500.0,0.00022809,2]
[315939251,1709293845430,-603.54,0.00022809,2]
[315939252,1709293845439,-500.0,0.00022809,2]
[315939253,1709293845449,-500.0,0.00022809,2]
[315939254,1709293845458,-500.0,0.00022809,2]
[315939255,1709293845468,-500.0,0.00022809,2]
[315939256,1709293845477,-500.0,0.00022809,2]
[315939257,1709293845486,-500.0,0.00022809,2]
[315939258,1709293845496,-1092.48,0.00022809,2]
[315939259,1709293845506,-1609.95,0.00022809,2]
[315939260,1709293845514,-500.0,0.00022809,2]
[315939261,1709293845523,-500.0,0.00022809,2]
[315939262,1709293845532,-618.06,0.00022809,2]
[315939263,1709293845541,-500.0,0.00022809,2]
[315939264,1709293845550,-500.0,0.00022809,2]
[315939265,1709293845559,-500.0,0.00022809,2]
[315939266,1709293845568,-500.0,0.00022809,2]
[315939267,1709293845576,-500.0,0.00022809,2]
[315939268,1709293845585,-1130.12,0.00022809,2]
[315939269,1709293845594,-500.0,0.00022809,2]
[315939270,1709293845603,-500.0,0.00022809,2]
[315939271,1709293845612,-500.0,0.00022809,2]
[315939272,1709293845622,-500.0,0.00022809,2]
[315939273,1709293845631,-500.0,0.00022809,2]
[315939274,1709293845640,-500.0,0.00022809,2]
[315939275,1709293845650,-500.0,0.00022809,2]
[315939276,1709293845658,-500.0,0.00022809,2]
[315939277,1709293845667,-500.0,0.00022809,2]
[315939278,1709293845676,-500.0,0.00022809,2]
[315939279,1709293845685,-500.0,0.00022809,2]
[315939280,1709293845695,-500.0,0.00022809,2]
[315939281,1709293845704,-1096.42,0.00022809,2]
[315939282,1709293845713,-500.0,0.00022809,2]
[315939283,1709293845724,-1452.96447896,0.00022834,2]
[315939284,1709293845733,-476.87,0.00022841,2]
[315939285,1709293845742,-173.89,0.00022841,2]
[315939286,1709293845752,-191.23,0.00022841,2]
[315939287,1709293845761,-3414.45420758,0.00022865,2]
[315939288,1709293845770,-32793.29615993,0.00022867,2]
[315939289,1709293845780,-1452.96447896,0.00022867,2]
[315939290,1709293845789,-158.24,0.00022877,2]
[315939291,1709293845799,-151.35361737,0.000229,2]
[315939292,1709293845808,-1452.96447896,0.000229,2]
[315939293,1709293845818,-5526.82842238,0.000229,2]
[315939294,1709293845829,-2217.9753161,0.000229,2]
[315939295,1709293845839,-1415.74330932,0.000229,2]
[315939296,1709293845849,-154.63198929,0.000229,4]
[315939297,1709293845858,-205.24730376,0.000229,2]
[315939298,1709293845867,-178.39538601,0.000229,2]
[315939299,1709293845876,-1414.40436416,0.000229,2]
[315939300,1709293845886,-971.45142976,0.000229,6]
[315939301,1709293845895,-1094.01252151,0.000229,2]
[315939302,1709293845905,-476.87,0.00022956,2]
[315939303,1709293845915,-173.89,0.00022956,2]
[315939304,1709293845925,-191.23,0.00022956,2]
[315939305,1709293845935,-689.14,0.00022964,2]
[315939306,1709293845944,-500.0,0.00022964,2]
[315939307,1709293846052,-500.0,0.00022964,2]
[315939308,1709293846072,-1445.28,0.00022964,2]
[315939309,1709293846082,-4672.8,0.00022964,2]
[315939310,1709293846091,-557.02,0.00022964,2]
[315939311,1709293846101,-726.26,0.00022964,2]
[315939312,1709293846110,-500.0,0.00022964,2]
[315939313,1709293846120,-699.74,0.00022964,2]
[315939314,1709293846129,-661.47,0.00022964,2]
[315939315,1709293846138,-500.0,0.00022964,2]
[315939316,1709293846148,-591.58,0.00022964,2]
[315939317,1709293846158,-500.0,0.00022964,2]
[315939318,1709293846167,-1375.63,0.00022964,2]
[315939319,1709293846177,-500.0,0.00022964,2]
[315939320,1709293846187,-575.89,0.00022964,2]
[315939321,1709293846196,-1001.98,0.00022964,2]
[315939322,1709293846206,-1212.18,0.00022964,2]
[315939323,1709293846215,-500.0,0.00022964,2]
[315939324,1709293846225,-718.91,0.00022964,2]
[315939325,1709293846235,-5359.82,0.00022964,2]
[315939326,1709293846244,-1182.74,0.00022964,2]
[315939327,1709293846254,-4100.89,0.00022964,2]
[315939328,1709293846263,-1729.04,0.00022964,2]
[315939329,1709293846273,-3659.22,0.00022964,2]
[315939330,1709293846283,-808.72,0.00022964,2]
[315939331,1709293846293,-884.34,0.00022964,2]
[315939332,1709293846302,-653.44,0.00022964,2]
[315939333,1709293846311,-616.38191228,0.00022965,2]
[315939334,1709293846320,-500.0,0.00022965,2]
[315939335,1709293846329,-500.0,0.00022965,2]
[315939336,1709293846338,-500.0,0.00022965,2]
[315939337,1709293846347,-500.0,0.00022965,2]
[315939338,1709293846356,-500.0,0.00022965,2]
[315939339,1709293846365,-1775.34,0.00022965,2]
[315939340,1709293846375,-870.44,0.00022965,2]
[315939341,1709293846385,-327.41748438,0.00022965,2]
[315939342,1709293846394,-564.0,0.00022965,2]
[315939343,1709293846404,-1495.23,0.00022965,2]
[315939345,1709293846413,-641.02553466,0.00022965,2]
[315939346,1709293846423,-1435.86,0.00022965,2]
[315939347,1709293846433,-548.6,0.00022965,2]
[315939348,1709293846443,-16010.36,0.00022965,2]
[315939349,1709293846453,-2696.62,0.00022965,2]
[315939350,1709293846462,-867.17,0.00022965,2]
[315939351,1709293846472,-500.0,0.00022965,2]
[315939352,1709293846482,-1217.46,0.00022965,2]
[315939353,1709293846492,-789.59,0.00022965,2]
[315939354,1709293846501,-500.0,0.00022965,2]
[315939355,1709293846512,-500.0,0.00022965,2]
[315939356,1709293846522,-500.0,0.00022965,2]
[315939357,1709293846531,-500.0,0.00022965,2]
[315939358,1709293846541,-1102.83,0.00022965,2]
[315939359,1709293846551,-500.0,0.00022965,2]
[315939360,1709293846561,-622.43,0.00022965,2]
[315939361,1709293846570,-796.11,0.00022965,2]
[315939362,1709293846579,-891.54,0.00022965,2]
[315939363,1709293846589,-500.0,0.00022965,2]
[315939364,1709293846598,-827.08,0.00022965,2]
[315939365,1709293846608,-2978.43,0.00022965,2]
[315939366,1709293846618,-500.0,0.00022965,2]
[315939367,1709293846627,-1724.89,0.00022965,2]
[315939368,1709293846637,-2335.66,0.00022965,2]
[315939369,1709293846647,-1170.98,0.00022965,2]
[315939370,1709293846657,-541.41,0.00022965,2]
[315939371,1709293846666,-675.81,0.00022965,2]
[315939372,1709293846675,-1479.67,0.00022965,2]
[315939373,1709293846685,-1181.14,0.00022965,2]
[315939374,1709293846694,-521.6,0.00022965,2]
[315939375,1709293846703,-597.46,0.00022965,2]
[315939376,1709293846713,-1109.77,0.00022965,2]
[315939377,1709293846724,-1171.99,0.00022965,2]
[315939378,1709293846733,-938.1,0.00022965,2]
[315939379,1709293846743,-500.0,0.00022965,2]
[315939380,1709293846754,-1613.1,0.00022965,2]
[315939381,1709293846764,-1753.24,0.00022965,2]
[315939382,1709293846774,-6709.06,0.00022965,2]
[315939383,1709293846785,-154.58791297,0.00022966,2]
[315939384,1709293846795,-776.58,0.00022966,2]
[315939385,1709293846805,-500.0,0.00022966,2]
[315939386,1709293846814,-500.0,0.00022966,2]
[315939387,1709293846824,-500.0,0.00022966,2]
[315939388,1709293846834,-500.0,0.00022966,2]
[315939389,1709293846849,-500.0,0.00022966,2]
[315939390,1709293846859,-500.0,0.00022966,2]
[315939391,1709293846868,-500.0,0.00022966,2]
[315939392,1709293846878,-500.0,0.00022966,2]
[315939393,1709293846889,-500.0,0.00022966,2]
[315939394,1709293846899,-740.64,0.00022966,2]
[315939395,1709293846909,-500.0,0.00022966,2]
[315939396,1709293846919,-500.0,0.00022966,2]
[315939397,1709293846928,-500.0,0.00022966,2]
[315939398,1709293846938,-620.59,0.00022966,2]
[315939399,1709293846948,-500.0,0.00022966,2]
[315939400,1709293846957,-547.9,0.00022966,2]
[315939401,1709293846967,-500.0,0.00022966,2]
[315939402,1709293846977,-500.0,0.00022966,2]
[315939403,1709293846987,-500.0,0.00022966,2]
[315939404,1709293846997,-500.0,0.00022966,2]
[315939406,1709293847007,-500.0,0.00022966,2]
[315939408,1709293847017,-500.0,0.00022966,2]
[315939410,1709293847027,-500.0,0.00022966,2]
[315939412,1709293847037,-276.2576103,0.00022966,2]
[315939414,1709293847046,-500.0,0.00022966,2]
[315939416,1709293847056,-500.0,0.00022966,2]
[315939419,1709293847066,-500.0,0.00022966,2]
[315939422,1709293847076,-500.0,0.00022966,2]
[315939425,1709293847085,-500.0,0.00022966,2]
[315939427,1709293847095,-500.0,0.00022966,2]
[315939430,1709293847104,-500.0,0.00022966,2]
[315939432,1709293847114,-578.75,0.00022966,2]
[315939434,1709293847123,-500.0,0.00022966,2]
[315939436,1709293847132,-500.0,0.00022966,2]
[315939438,1709293847142,-500.0,0.00022966,2]
[315939440,1709293847151,-500.0,0.00022966,2]
[315939442,1709293847160,-500.0,0.00022966,2]
[315939443,1709293847170,-500.0,0.00022966,2]
[315939444,1709293847179,-526.78,0.00022966,2]
[315939445,1709293847190,-500.0,0.00022966,2]
[315939446,1709293847199,-500.0,0.00022966,2]
[315939447,1709293847209,-500.0,0.00022966,2]
[315939448,1709293847218,-500.0,0.00022966,2]
[315939449,1709293847229,-500.0,0.00022966,2]
[315939450,1709293847238,-540.58,0.00022966,2]
[315939451,1709293847247,-500.0,0.00022966,2]
[315939452,1709293847257,-561.63,0.00022966,2]
[315939453,1709293847266,-811.76,0.00022966,2]
[315939454,1709293847275,-500.0,0.00022966,2]
[315939455,1709293847284,-500.0,0.00022966,2]
[315939456,1709293847295,-500.0,0.00022966,2]
[315939457,1709293847305,-646.74,0.00022966,2]
[315939458,1709293847315,-500.0,0.00022976,2]
[315939459,1709293847324,-500.0,0.00022976,2]
[315939460,1709293847334,-500.0,0.00022977,2]
[315939461,1709293847344,-509.55,0.00022977,2]
[315939462,1709293847353,-500.0,0.00022977,2]
[315939463,1709293847362,-500.0,0.00022977,2]
[315939464,1709293847372,-500.0,0.00022977,2]
[315939465,1709293847381,-500.0,0.00022977,2]
[315939466,1709293847391,-444.12838951,0.00022977,2]
[315939467,1709293847400,-500.0,0.00022977,2]
[315939468,1709293847411,-500.0,0.00022977,2]
[315939469,1709293847420,-643.81,0.00022977,2]
[315939470,1709293847430,-500.0,0.00022977,2]
[315939471,1709293847439,-500.0,0.00022977,2]
[315939472,1709293847449,-500.0,0.00022977,2]
[315939473,1709293847458,-500.0,0.00022977,2]
[315939474,1709293847468,-500.0,0.00022977,2]
[315939475,1709293847478,-562.15540691,0.00022977,2]
[315939476,1709293847488,-500.0,0.00022977,2]
[315939477,1709293847498,-500.0,0.00022977,2]
[315939478,1709293847507,-823.01,0.00022977,2]
[315939479,1709293847517,-592.07,0.00022977,2]
[315939480,1709293847526,-500.0,0.00022977,2]
[315939481,1709293847535,-500.0,0.00022977,2]
[315939482,1709293847544,-490.34501817,0.00022977,2]
[315939483,1709293847554,-500.0,0.00022977,2]
[315939484,1709293847563,-500.0,0.00022977,2]
[315939485,1709293847572,-500.0,0.00022977,2]
[315939486,1709293847582,-500.0,0.00022977,2]
[315939487,1709293847591,-500.0,0.00022977,2]
[315939488,1709293847601,-500.0,0.00022977,2]
[315939489,1709293847610,-500.0,0.00022977,2]
[315939490,1709293847620,-500.0,0.00022977,2]
[315939491,1709293847629,-500.0,0.00022977,2]
[315939492,1709293847639,-606.31457651,0.00022977,2]
[315939493,1709293847648,-500.0,0.00022977,2]
[315939494,1709293847657,-752.37,0.00022977,2]
[315939495,1709293847667,-503.40615249,0.00022977,2]
[315939496,1709293847676,-500.0,0.00022977,2]
[315939497,1709293847685,-500.0,0.00022977,2]
[315939498,1709293847695,-500.0,0.00022977,2]
[315939499,1709293847705,-526.94,0.00022977,2]
[315939500,1709293847714,-885.5,0.00022977,2]
[315939501,1709293847724,-500.0,0.00022977,2]
[315939502,1709293847733,-500.0,0.00022977,2]
[315939503,1709293847742,-500.0,0.00022977,2]
[315939504,1709293847752,-500.0,0.00022977,2]
[315939505,1709293847761,-500.0,0.00022977,2]
[315939506,1709293847771,-150.0,0.00022977,2]
[315939507,1709293847780,-500.0,0.00022977,2]
[315939508,1709293847790,-500.0,0.00022977,2]
[315939509,1709293847799,-500.0,0.00022977,2]
[315939510,1709293847809,-568.68,0.00022977,2]
[315939511,1709293847818,-500.0,0.00022977,2]
[315939512,1709293847831,-840.38,0.00022977,2]
[315939513,1709293847841,-500.0,0.00022977,2]
[315939514,1709293847850,-500.0,0.00022977,2]
[315939515,1709293847860,-505.71,0.00022977,2]
[315939516,1709293847870,-500.0,0.00022977,2]
[315939517,1709293847879,-587.74,0.00022977,2]
[315939518,1709293847888,-500.0,0.00022977,2]
[315939519,1709293847898,-601.38,0.00022977,2]
[315939520,1709293847908,-500.0,0.00022977,2]
[315939521,1709293847918,-500.0,0.00022977,2]
[315939522,1709293847927,-523.29,0.00022977,2]
[315939523,1709293847937,-500.0,0.00022977,2]
[315939524,1709293847946,-500.0,0.00022977,2]
[315939525,1709293847956,-929.18,0.00022977,2]
[315939526,1709293847965,-500.0,0.00022977,2]
[315939527,1709293847974,-613.98,0.00022977,2]
[315939528,1709293847984,-500.0,0.00022977,2]
[315939529,1709293847993,-500.0,0.00022977,2]
[315939530,1709293848003,-2708.89,0.00022977,2]
[315939531,1709293848013,-1029.46,0.00022977,2]
[315939532,1709293848021,-500.0,0.00022977,2]
[315939533,1709293848031,-1283.68,0.00022977,2]
[315939534,1709293848040,-500.0,0.00022977,2]
[315939535,1709293848049,-500.0,0.00022977,2]
[315939536,1709293848058,-1407.91,0.00022977,2]
[315939537,1709293848067,-500.0,0.00022977,2]
[315939538,1709293848076,-605.54,0.00022977,2]
[315939539,1709293848086,-540.94,0.00022977,2]
[315939540,1709293848095,-500.0,0.00022977,2]
[315939541,1709293848104,-1256.91,0.00022977,2]
[315939542,1709293848113,-550.19035341,0.00022977,2]
[315939543,1709293848123,-1686.36,0.00022977,2]
[315939544,1709293848132,-764.64,0.00022977,2]
[315939545,1709293848141,-2363.31,0.00022977,2]
[315939546,1709293848150,-1597.33,0.00022977,2]
[315939547,1709293848159,-500.0,0.00022977,2]
[315939548,1709293848169,-600.76243809,0.00022977,2]
[315939549,1709293848179,-255.16769484,0.00022977,2]
[315939550,1709293848188,-500.0,0.00022977,2]
[315939551,1709293848197,-1216.78,0.00022977,2]
[315939552,1709293848206,-831.7,0.00022977,2]
[315939553,1709293848216,-500.0,0.00022977,2]
[315939554,1709293848226,-606.46,0.00022977,2]
[315939555,1709293848235,-500.0,0.00022977,2]
[315939556,1709293848496,-685.05,0.00022977,2]
[315939557,1709293848508,-979.6,0.00022977,2]
[315939558,1709293848518,-1097.46,0.00022977,2]
[315939559,1709293848527,-500.0,0.00022977,2]
[315939560,1709293848537,-500.0,0.00022977,2]
[315939561,1709293848545,-875.38,0.00022977,2]
[315939562,1709293848554,-549.32,0.00022977,2]
[315939563,1709293848564,-500.0,0.00022977,2]
[315939564,1709293848574,-653.74,0.00022977,2]
[315939565,1709293848583,-1741.85,0.00022977,2]
[315939566,1709293848592,-500.0,0.00022977,2]
[315939567,1709293848603,-532.65,0.00022977,2]
[315939568,1709293848612,-500.0,0.00022977,2]
[315939569,1709293848621,-557.01,0.00022977,2]
[315939570,1709293848631,-500.0,0.00022977,2]
[315939571,1709293848641,-636.39,0.00022977,2]
[315939572,1709293848650,-500.0,0.00022977,2]
[315939573,1709293848660,-2055.25,0.00022977,2]
[315939574,1709293848670,-1045.04,0.00022977,2]
[315939575,1709293848679,-500.0,0.00022977,2]
[315939576,1709293848688,-1028.03,0.00022977,2]
[315939577,1709293848697,-672.6,0.00022977,2]
[315939578,1709293848707,-528.88,0.00022977,2]
[315939579,1709293848717,-730.33,0.00022977,2]
[315939580,1709293848727,-500.0,0.00022977,2]
[315939581,1709293848737,-500.0,0.00022977,2]
[315939582,1709293848746,-906.99,0.00022977,2]
[315939583,1709293848756,-500.0,0.00022977,2]
[315939584,1709293848765,-2220.31,0.00022977,2]
[315939585,1709293848774,-504.18,0.00022977,2]
[315939586,1709293848784,-500.0,0.00022977,2]
[315939587,1709293848793,-1251.33,0.00022977,2]
[315939588,1709293848803,-610.63,0.00022977,2]
[315939589,1709293848812,-597.75,0.00022977,2]
[315939590,1709293848822,-500.0,0.00022977,2]
[315939591,1709293848831,-500.0,0.00022977,2]
[315939592,1709293848842,-500.0,0.00022977,2]
[315939593,1709293848851,-500.0,0.00022977,2]
[315939594,1709293848861,-500.0,0.00022977,2]
[315939595,1709293848870,-500.0,0.00022977,2]
[315939596,1709293848879,-500.0,0.00022977,2]
[315939597,1709293848889,-500.0,0.00022977,2]
[315939598,1709293848899,-500.0,0.00022977,2]
[315939599,1709293848909,-500.0,0.00022977,2]
[315939600,1709293848920,-500.0,0.00022977,2]
[315939601,1709293848930,-500.0,0.00022977,2]
[315939602,1709293848939,-500.0,0.00022977,2]
[315939603,1709293848949,-500.0,0.00022977,2]
[315939604,1709293848958,-500.0,0.00022977,2]
[315939605,1709293848967,-2188.64,0.00022977,2]
[315939606,1709293848978,-705.07,0.00022977,2]
[315939607,1709293848987,-500.0,0.00022977,2]
[315939608,1709293848997,-500.0,0.00022977,2]
[315939609,1709293849008,-605.26,0.00022977,2]
[315939610,1709293849020,-308.16901423,0.00022977,2]
[315939611,1709293849029,-7517.77,0.00022977,2]
[315939612,1709293849038,-1520.43,0.00022977,2]
[315939613,1709293849048,-500.0,0.00022977,2]
[315939614,1709293849057,-500.0,0.00022977,2]
[315939615,1709293849066,-7431.46,0.00022977,2]
[315939616,1709293849076,-200.0,0.00022987,2]
[315939617,1709293849085,-1000.0,0.00022999,2]
[315939618,1709293849094,-593.41410965,0.00023,2]
[315939619,1709293849104,-1500.0,0.00023,2]
[315939620,1709293849114,-165.0,0.00023,2]
[315939621,1709293849123,-2200.0,0.00023,2]
[315939622,1709293849132,-2658.52318152,0.00023,2]
[315939623,1709293849142,-1000.0,0.00023,2]
[315939624,1709293849151,-1000.0,0.00023,2]
[315939625,1709293849161,-460494.09890578,0.00023,2]
[315939626,1709293849704,-500.0,0.00022703,2]
[315939627,1709293849714,-237.94367793,0.00022964,2]
[315939628,1709293849726,-405.77499999,0.00022964,2]
[315939629,1709293849738,-52.91132208,0.00022964,2]
[315939630,1709293849747,-461.40574376,0.00022977,2]
[315939631,1709293849977,-278.97530555,0.00022155,2]
[315939632,1709293850003,-221.02469445,0.00022155,2]
[315939633,1709293850013,-305.22530555,0.00022155,2]
[315939634,1709293850025,-194.77469445,0.00022155,2]
[315939635,1709293850034,-2500.0,0.00022329,2]
[315939636,1709293850043,-500.0,0.00022429,2]
[315939637,1709293850052,-500.0,0.00022703,2]
[315939638,1709293850061,-38.59425624,0.00022977,2]
[315939639,1709293850071,-4994.16758306,0.00023,2]
[315939640,1709293850650,-500.0,0.00022155,2]